lending/lending_fUSD_20240621
["ID","MTS","AMOUNT","RATE_DAILY","PERIOD"]
[330063027,1718977863300,-1111.7,0.00021917,4]
[330063028,1718977863310,-752.08,0.00021917,4]
[330063029,1718977863319,-172.35,0.00021918,2]
[330063030,1718977863328,-150.0,0.00021918,2]
[330063031,1718977863338,-150.0,0.00021918,2]
[330063032,1718977863347,-7567.55,0.00021927,2]
[330063033,1718977863356,-431.07,0.00021947,2]
[330063034,1718977863366,-2261.99999802,0.00022,2]
[330063035,1718977863375,-394.991004,0.00022,30]
[330063036,1718977863384,-737.10826289,0.00022,7]
[330063037,1718977863394,-172.0,0.00022,2]
[330063038,1718977863404,-162.2473133,0.00022016,2]
[330063039,1718977863413,-9462.90168783,0.00022073,2]
[330063040,1718977863423,-150.0,0.00022076,2]
[330063041,1718977863433,-150.0,0.00022076,2]
[330063042,1718977863603,-150.0,0.00022076,2]
[330063043,1718977863634,-150.195,0.00022076,2]
[330063044,1718977863645,-238.638,0.00022076,2]
[330063045,1718977863655,-258.934,0.00022076,2]
[330063046,1718977863665,-184.808,0.00022076,2]
[330063047,1718977863675,-206.254,0.00022076,2]
[330063048,1718977863684,-150.921,0.00022076,2]
[330063049,1718977863694,-200.329,0.00022076,2]
[330063050,1718977863704,-151.838,0.00022076,2]
[330063051,1718977863714,-154.59692945,0.00022082,2]
[330063052,1718977863724,-150.0,0.0002219,10]
[330063053,1718977863734,-150.0,0.0002219,10]
[330063054,1718977863745,-500.0,0.00022191,4]
[330063055,1718977863755,-500.0,0.00022191,4]
[330063056,1718977863765,-500.0,0.00022191,4]
[330063057,1718977863774,-500.0,0.00022191,4]
[330063058,1718977863785,-500.0,0.00022191,4]
[330063059,1718977863795,-500.55166614,0.00022191,4]
[330063060,1718977863806,-216.95446157,0.00022191,4]
[330063061,1718977863815,-500.0,0.00022191,4]
[330063062,1718977863825,-500.0,0.00022191,4]
[330063063,1718977863834,-500.0,0.00022191,4]
[330063064,1718977863844,-500.0,0.00022191,4]
[330063065,1718977863854,-610.38302709,0.00022191,4]
[330063066,1718977863863,-500.0,0.00022191,4]
[330063067,1718977863873,-534.19731264,0.00022191,4]
[330063068,1718977863883,-505.03020582,0.00022191,4]
[330063069,1718977863893,-500.0,0.00022191,4]
[330063070,1718977863902,-500.0,0.00022191,4]
[330063071,1718977863912,-496.89188862,0.00022191,4]
[330063072,1718977863922,-500.0,0.00022191,4]
[330063073,1718977863931,-500.0,0.00022191,4]
[330063074,1718977863941,-621.85623351,0.00022191,4]
[330063075,1718977863950,-500.0,0.00022191,4]
[330063076,1718977863960,-500.0,0.00022191,4]
[330063077,1718977863970,-210.32419989,0.00022191,4]
[330063078,1718977863980,-500.0,0.00022191,4]
[330063079,1718977863991,-500.0,0.00022191,4]
[330063080,1718977864006,-806.22,0.00022191,4]
[330063081,1718977864015,-500.0,0.00022191,4]
[330063082,1718977864027,-475.159809,0.00022191,4]
[330063083,1718977864037,-500.0,0.00022191,4]
[330063084,1718977864046,-1382.26,0.00022191,4]
[330063085,1718977864056,-455.75679809,0.00022191,4]
[330063086,1718977864066,-621.74,0.00022191,4]
[330063087,1718977864087,-500.0,0.00022191,4]
[330063088,1718977864097,-500.0,0.00022191,4]
[330063089,1718977864107,-500.0,0.00022191,4]
[330063090,1718977864116,-758.75,0.00022191,4]
[330063091,1718977864126,-643.49,0.00022191,4]
[330063092,1718977864135,-500.0,0.00022191,4]
[330063093,1718977864145,-1758.39,0.00022191,4]
[330063094,1718977864155,-500.0,0.00022191,4]
[330063095,1718977864165,-583.0,0.00022191,4]
[330063096,1718977864175,-500.0,0.00022191,4]
[330063097,1718977864185,-259.77855503,0.00022191,4]
[330063098,1718977864195,-873.56,0.00022191,4]
[330063099,1718977864205,-500.0,0.00022191,4]
[330063100,1718977864215,-500.0,0.00022191,4]
[330063101,1718977864225,-1067.32,0.00022191,4]
[330063102,1718977864235,-500.0,0.00022191,4]
[330063103,1718977864246,-500.0,0.00022191,4]
[330063104,1718977864255,-500.0,0.00022191,4]
[330063105,1718977864265,-500.0,0.00022191,4]
[330063106,1718977864275,-500.0,0.00022191,4]
[330063107,1718977864285,-500.0,0.00022191,4]
[330063108,1718977864295,-500.0,0.00022191,4]
[330063109,1718977864305,-500.0,0.00022191,4]
[330063110,1718977864315,-1187.07,0.00022191,4]
[330063111,1718977864332,-818.63,0.00022191,4]
[330063112,1718977864342,-500.0,0.00022191,4]
[330063113,1718977864351,-500.0,0.00022191,4]
[330063114,1718977864361,-500.0,0.00022191,4]
[330063115,1718977864370,-500.0,0.00022191,4]
[330063116,1718977864380,-514.8,0.00022191,4]
[330063117,1718977864389,-500.0,0.00022191,4]
[330063118,1718977864399,-1034.01,0.00022191,4]
[330063119,1718977864409,-500.0,0.00022191,4]
[330063120,1718977864418,-500.0,0.00022191,4]
[330063121,1718977864428,-500.0,0.00022191,4]
[330063122,1718977864438,-500.0,0.00022191,4]
[330063123,1718977864448,-608.86,0.00022191,4]
[330063124,1718977864457,-1220.04,0.00022191,4]
[330063125,1718977864466,-914.76,0.00022191,4]
[330063126,1718977864476,-552.17,0.00022191,4]
[330063127,1718977864486,-774.96,0.00022191,4]
[330063128,1718977864496,-500.0,0.00022191,4]
[330063129,1718977864505,-500.0,0.00022191,4]
[330063130,1718977864515,-500.0,0.00022191,4]
[330063131,1718977864524,-500.0,0.00022191,4]
[330063132,1718977864534,-1415.8,0.00022191,4]
[330063133,1718977864544,-1069.15,0.00022191,4]
[330063134,1718977864555,-629.1,0.00022191,4]
[330063135,1718977864566,-504.49,0.00022191,4]
[330063136,1718977864580,-651.63,0.00022191,4]
[330063137,1718977864590,-500.0,0.00022191,4]
[330063138,1718977864600,-500.0,0.00022191,4]
[330063139,1718977864610,-500.0,0.00022191,4]
[330063140,1718977864620,-952.06,0.00022191,4]
[330063141,1718977864629,-500.0,0.00022191,4]
[330063142,1718977864639,-1110.23,0.00022191,4]
[330063143,1718977864650,-500.0,0.00022191,4]
[330063144,1718977864660,-500.0,0.00022191,4]
[330063145,1718977864669,-500.0,0.00022191,4]
[330063146,1718977864679,-500.0,0.00022191,4]
[330063147,1718977864689,-582.61,0.00022191,4]
[330063148,1718977864699,-500.0,0.00022191,4]
[330063149,1718977864709,-500.0,0.00022191,4]
[330063150,1718977864719,-401.0494554,0.00022191,4]
[330063151,1718977864729,-500.0,0.00022191,4]
[330063152,1718977864740,-825.95,0.00022191,4]
[330063153,1718977864750,-1025.44,0.00022191,4]
[330063154,1718977864760,-500.0,0.00022191,4]
[330063155,1718977864769,-687.77,0.00022191,4]
[330063156,1718977864778,-960.71,0.00022191,4]
[330063157,1718977864788,-830.28,0.00022191,4]
[330063158,1718977864798,-550.3,0.00022191,4]
[330063159,1718977864808,-500.0,0.00022191,4]
[330063160,1718977864818,-874.23,0.00022191,4]
[330063161,1718977864830,-500.0,0.00022191,4]
[330063162,1718977864840,-500.0,0.00022191,4]
[330063163,1718977864849,-500.0,0.00022191,4]
[330063164,1718977864859,-816.25,0.00022191,4]
[330063165,1718977864868,-500.0,0.00022191,4]
[330063166,1718977864878,-500.0,0.00022191,4]
[330063167,1718977864888,-664.99,0.00022191,4]
[330063168,1718977864897,-238.57,0.00022191,4]
[330063169,1718977864907,-500.0,0.00022191,4]
[330063170,1718977864916,-680.38,0.00022191,4]
[330063171,1718977864926,-1079.66,0.00022191,4]
[330063172,1718977864936,-1049.84,0.00022191,4]
[330063173,1718977864946,-364.13433609,0.00022191,4]
[330063174,1718977864957,-820.76,0.00022191,4]
[330063175,1718977864966,-542.17,0.00022191,4]
[330063176,1718977864975,-500.0,0.00022191,4]
[330063177,1718977864985,-553.93,0.00022191,4]
[330063178,1718977865000,-500.0,0.00022191,4]
[330063179,1718977865010,-500.0,0.00022191,4]
[330063180,1718977865020,-500.0,0.00022191,4]
[330063181,1718977865030,-500.0,0.00022191,4]
[330063182,1718977865040,-500.0,0.00022191,4]
[330063183,1718977865049,-500.0,0.00022191,4]
[330063184,1718977865060,-500.0,0.00022191,4]
[330063185,1718977865072,-500.0,0.00022191,4]
[330063186,1718977865081,-500.0,0.00022191,4]
[330063187,1718977865091,-500.0,0.00022191,4]
[330063188,1718977865100,-500.0,0.00022191,4]
[330063189,1718977865109,-500.0,0.00022191,4]
[330063190,1718977865118,-609.55,0.00022191,4]
[330063191,1718977865128,-642.80352134,0.00022191,4]
[330063192,1718977865138,-500.34,0.00022191,8]
[330063193,1718977865148,-500.0,0.00022191,4]
[330063194,1718977865158,-936.19,0.00022191,4]
[330063195,1718977865167,-500.0,0.00022191,4]
[330063196,1718977865177,-1370.22,0.00022191,4]
[330063197,1718977865187,-831.48,0.00022191,4]
[330063198,1718977865197,-635.68,0.00022191,4]
[330063199,1718977865207,-177.39364306,0.00022191,4]
[330063200,1718977865216,-500.0,0.00022191,4]
[330063201,1718977865226,-500.0,0.00022191,4]
[330063202,1718977865236,-500.0,0.00022191,4]
[330063203,1718977865245,-500.0,0.00022191,4]
[330063204,1718977865255,-500.0,0.00022191,4]
[330063205,1718977865264,-529.43674136,0.00022191,4]
[330063206,1718977865274,-817.85,0.00022191,4]
[330063207,1718977865283,-745.11,0.00022191,4]
[330063208,1718977865293,-717.2,0.00022191,4]
[330063209,1718977865302,-500.0,0.00022191,4]
[330063210,1718977865312,-500.0,0.00022191,4]
[330063211,1718977865325,-500.0,0.00022191,4]
[330063212,1718977865334,-500.0,0.00022191,4]
[330063213,1718977865344,-827.35,0.00022191,4]
[330063214,1718977865353,-500.0,0.00022191,4]
[330063215,1718977865362,-500.0,0.00022191,4]
[330063216,1718977865371,-748.04,0.00022191,4]
[330063217,1718977865380,-500.0,0.00022191,4]
[330063218,1718977865389,-500.0,0.00022191,4]
[330063219,1718977865398,-500.0,0.00022191,4]
[330063220,1718977865407,-500.0,0.00022191,4]
[330063221,1718977865417,-500.0,0.00022191,4]
[330063222,1718977865427,-500.0,0.00022191,4]
[330063223,1718977865437,-500.0,0.00022191,4]
[330063224,1718977865447,-500.0,0.00022191,4]
[330063225,1718977865457,-500.0,0.00022191,4]
[330063226,1718977865467,-500.0,0.00022191,4]
[330063227,1718977865477,-500.0,0.00022191,4]
[330063228,1718977865487,-500.0,0.00022191,4]
[330063229,1718977865498,-949.28,0.00022191,4]
[330063230,1718977865508,-500.0,0.00022191,4]
[330063231,1718977865518,-500.0,0.00022191,4]
[330063232,1718977865528,-500.0,0.00022191,4]
[330063233,1718977865538,-850.68,0.00022191,4]
[330063234,1718977865547,-500.0,0.00022191,4]
[330063235,1718977865558,-629.6,0.00022191,4]
[330063236,1718977865568,-500.0,0.00022191,4]
[330063237,1718977865582,-532.41918042,0.00022191,4]
[330063238,1718977865592,-1130.04,0.00022191,4]
[330063239,1718977865601,-500.0,0.00022191,4]
[330063240,1718977865610,-2112.8,0.00022191,4]
[330063241,1718977865619,-635.1,0.00022191,4]
[330063242,1718977865628,-500.0,0.00022191,4]
[330063243,1718977865637,-500.0,0.00022191,4]
[330063244,1718977865646,-1518.85,0.00022191,4]
[330063245,1718977865655,-747.15,0.00022191,4]
[330063246,1718977865665,-541.86,0.00022191,4]
[330063247,1718977865675,-500.0,0.00022191,4]
[330063248,1718977865684,-737.62,0.00022191,4]
[330063249,1718977865695,-599.76453052,0.00022191,4]
[330063250,1718977865704,-500.0,0.00022191,4]
[330063251,1718977865713,-500.0,0.00022191,4]
[330063252,1718977865723,-500.0,0.00022191,4]
[330063253,1718977865733,-500.0,0.00022191,4]
[330063254,1718977865742,-500.0,0.00022191,4]
[330063255,1718977865752,-947.67,0.00022191,4]
[330063256,1718977865763,-500.0,0.00022191,4]
[330063257,1718977865773,-713.13,0.00022191,4]
[330063258,1718977865782,-500.0,0.00022191,4]
[330063259,1718977866110,-500.0,0.00022191,4]
[330063260,1718977866138,-500.0,0.00022191,4]
[330063261,1718977866148,-764.08,0.00022191,4]
[330063262,1718977866158,-1084.36,0.00022191,4]
[330063263,1718977866167,-503.32958886,0.00022191,4]
[330063264,1718977866178,-1016.53,0.00022191,4]
[330063265,1718977866187,-808.02,0.00022191,4]
[330063266,1718977866197,-1176.11,0.00022191,4]
[330063267,1718977866207,-1111.76,0.00022191,4]
[330063268,1718977866217,-500.0,0.00022191,4]
[330063269,1718977866226,-270.10689038,0.00022191,4]
[330063270,1718977866235,-611.47,0.00022191,4]
[330063271,1718977866244,-500.0,0.00022191,4]
[330063272,1718977866254,-500.0,0.00022191,4]
[330063273,1718977866263,-520.14,0.00022191,4]
[330063274,1718977866273,-953.46,0.00022191,4]
[330063275,1718977866282,-500.0,0.00022191,4]
[330063276,1718977866292,-500.0,0.00022191,4]
[330063277,1718977866301,-500.0,0.00022191,4]
[330063278,1718977866311,-500.0,0.00022191,4]
[330063279,1718977866320,-500.0,0.00022191,4]
[330063280,1718977866335,-607.52,0.00022191,4]
[330063281,1718977866344,-500.0,0.00022191,4]
[330063282,1718977866353,-500.0,0.00022191,4]
[330063283,1718977866363,-768.29,0.00022191,4]
[330063284,1718977866372,-533.19,0.00022191,4]
[330063285,1718977866382,-559.41,0.00022191,4]
[330063286,1718977866391,-1344.6,0.00022191,4]
[330063287,1718977866399,-500.0,0.00022191,4]
[330063288,1718977866409,-500.0,0.00022191,4]
[330063289,1718977866419,-500.0,0.00022191,4]
[330063290,1718977866428,-731.9,0.00022191,4]
[330063291,1718977866438,-833.83,0.00022191,4]
[330063292,1718977866447,-500.0,0.00022191,4]
[330063293,1718977866456,-500.0,0.00022191,4]
[330063294,1718977866466,-523.79,0.00022191,4]
[330063295,1718977866475,-570.98,0.00022191,4]
[330063296,1718977866484,-500.0,0.00022191,4]
[330063297,1718977866494,-2151.03,0.00022191,4]
[330063298,1718977866503,-500.0,0.00022191,4]
[330063299,1718977866513,-500.0,0.00022191,4]
[330063300,1718977866522,-500.0,0.00022191,4]
[330063301,1718977866532,-500.0,0.00022191,4]
[330063302,1718977866542,-500.0,0.00022191,4]
[330063303,1718977866551,-1022.81,0.00022191,4]
[330063304,1718977866561,-572.91,0.00022191,4]
[330063305,1718977866570,-500.0,0.00022191,4]
[330063306,1718977866586,-500.0,0.00022191,4]
[330063307,1718977866595,-851.26,0.00022191,4]
[330063308,1718977866604,-500.0,0.00022191,4]
[330063309,1718977866614,-500.0,0.00022191,4]
[330063310,1718977866623,-500.0,0.00022191,4]
[330063311,1718977866633,-500.0,0.00022191,4]
[330063312,1718977866643,-500.0,0.00022191,4]
[330063313,1718977866652,-500.0,0.00022191,4]
[330063314,1718977866662,-500.0,0.00022191,4]
[330063315,1718977866672,-1435.76,0.00022191,4]
[330063316,1718977866681,-500.0,0.00022191,4]
[330063317,1718977866691,-500.0,0.00022191,4]
[330063318,1718977866701,-1172.27,0.00022191,4]
[330063319,1718977866710,-500.0,0.00022191,4]
[330063320,1718977866720,-1927.83,0.00022191,4]
[330063321,1718977866729,-644.65,0.00022191,4]
[330063322,1718977866738,-910.3,0.00022191,4]
[330063323,1718977866748,-521.24845751,0.00022191,4]
[330063324,1718977866757,-742.28,0.00022191,4]
[330063325,1718977866767,-500.0,0.00022191,4]
[330063326,1718977866776,-500.0,0.00022191,4]
[330063327,1718977866786,-500.0,0.00022191,4]
[330063328,1718977866795,-1306.09,0.00022191,4]
[330063329,1718977866805,-965.68,0.00022191,4]
[330063330,1718977866815,-500.0,0.00022191,4]
[330063331,1718977866824,-509.95,0.00022191,4]
[330063332,1718977866834,-2032.59,0.00022191,4]
[330063333,1718977866843,-500.0,0.00022191,4]
[330063334,1718977866852,-500.0,0.00022191,4]
[330063335,1718977866861,-500.0,0.00022191,4]
[330063336,1718977866871,-715.19,0.00022191,4]
[330063337,1718977866880,-500.0,0.00022191,4]
[330063338,1718977866889,-880.63,0.00022191,4]
[330063339,1718977866899,-1743.74,0.00022191,4]
[330063340,1718977866908,-517.69928224,0.00022191,4]
[330063341,1718977866918,-653.32,0.00022191,4]
[330063342,1718977866927,-798.05,0.00022191,4]
[330063343,1718977866937,-907.87,0.00022191,4]
[330063344,1718977866947,-662.45,0.00022191,4]
[330063345,1718977866956,-2098.68,0.00022191,4]
[330063346,1718977866966,-724.87,0.00022191,4]
[330063347,1718977866976,-500.0,0.00022191,4]
[330063348,1718977866986,-500.0,0.00022191,4]
[330063349,1718977867001,-500.0,0.00022191,4]
[330063350,1718977867010,-500.0,0.00022191,4]
[330063351,1718977867020,-500.0,0.00022191,4]
[330063352,1718977867031,-500.0,0.00022191,4]
[330063353,1718977867040,-779.23,0.00022191,4]
[330063354,1718977867051,-500.0,0.00022191,4]
[330063355,1718977867061,-500.0,0.00022191,4]
[330063356,1718977867070,-2092.0,0.00022191,4]
[330063357,1718977867082,-500.0,0.00022191,4]
[330063358,1718977867092,-500.0,0.00022191,4]
[330063359,1718977867102,-1142.19,0.00022191,4]
[330063360,1718977867111,-1522.69,0.00022191,4]
[330063361,1718977867121,-500.0,0.00022191,4]
[330063362,1718977867131,-501.01994838,0.00022191,4]
[330063363,1718977867141,-437.96936274,0.00022191,4]
[330063364,1718977867150,-500.0,0.00022191,4]
[330063365,1718977867160,-500.0,0.00022191,4]
[330063366,1718977867171,-500.0,0.00022191,4]
[330063367,1718977867181,-2238.83,0.00022191,4]
[330063368,1718977867191,-500.0,0.00022191,4]
[330063369,1718977867200,-500.0,0.00022191,4]
[330063370,1718977867211,-1872.93,0.00022191,4]
[330063371,1718977867221,-500.0,0.00022191,4]
[330063372,1718977867230,-564.38,0.00022191,4]
[330063373,1718977867240,-500.0,0.00022191,4]
[330063374,1718977867249,-500.0,0.00022191,4]
[330063375,1718977867259,-896.5,0.00022191,4]
[330063376,1718977867268,-500.0,0.00022191,4]
[330063377,1718977867278,-500.0,0.00022191,4]
[330063378,1718977867287,-918.37,0.00022191,4]
[330063379,1718977867296,-500.0,0.00022191,4]
[330063380,1718977867306,-500.0,0.00022191,4]
[330063381,1718977867316,-500.0,0.00022191,4]
[330063382,1718977867325,-500.0,0.00022191,4]
[330063383,1718977867335,-1593.39,0.00022191,4]
[330063384,1718977867344,-500.0,0.00022191,4]
[330063385,1718977867354,-1200.47,0.00022191,4]
[330063386,1718977867364,-500.0,0.00022191,4]
[330063387,1718977867373,-500.0,0.00022191,4]
[330063388,1718977867383,-500.0,0.00022191,4]
[330063389,1718977867392,-500.0,0.00022191,4]
[330063390,1718977867401,-874.58,0.00022191,4]
[330063391,1718977867410,-2259.38,0.00022191,4]
[330063392,1718977867419,-500.0,0.00022191,4]
[330063393,1718977867429,-500.0,0.00022191,4]
[330063394,1718977867439,-1143.11,0.00022191,4]
[330063395,1718977867448,-500.0,0.00022191,4]
[330063396,1718977867457,-1042.07,0.00022191,4]
[330063397,1718977867468,-500.0,0.00022191,4]
[330063398,1718977867477,-500.0,0.00022191,2]
[330063399,1718977867486,-1723.9,0.00022191,4]
[330063400,1718977867496,-775.41,0.00022191,4]
[330063401,1718977867505,-500.0,0.00022191,4]
[330063402,1718977867515,-2579.83,0.00022191,4]
[330063403,1718977867525,-500.0,0.00022191,4]
[330063404,1718977867534,-552.27,0.00022191,4]
[330063405,1718977867544,-853.35,0.00022191,4]
[330063406,1718977867554,-1157.73,0.00022191,4]
[330063407,1718977867563,-1319.57,0.00022191,4]
[330063408,1718977867573,-1179.68,0.00022191,4]
[330063409,1718977867582,-1580.02,0.00022191,4]
[330063410,1718977867592,-2174.39,0.00022191,4]
[330063411,1718977867601,-500.0,0.00022191,4]
[330063412,1718977867610,-669.36,0.00022191,4]
[330063413,1718977867619,-500.0,0.00022191,4]
[330063414,1718977867629,-1878.98,0.00022191,4]
[330063415,1718977867638,-497.7084699,0.00022191,4]
[330063416,1718977867647,-500.0,0.00022191,4]
[330063417,1718977867657,-500.0,0.00022191,4]
[330063418,1718977867666,-500.0,0.00022191,4]
[330063419,1718977867676,-500.0,0.00022191,4]
[330063420,1718977867685,-756.18,0.00022191,4]
[330063421,1718977867696,-1103.22,0.00022191,4]
[330063422,1718977867706,-500.0,0.00022191,4]
[330063423,1718977867717,-500.0,0.00022191,4]
[330063424,1718977867727,-500.0,0.00022191,4]
[330063425,1718977867738,-946.73,0.00022191,4]
[330063426,1718977867748,-2228.0,0.00022191,4]
[330063427,1718977867759,-500.0,0.00022191,4]
[330063428,1718977867768,-768.4,0.00022191,4]
[330063429,1718977867778,-508.19783731,0.00022191,4]
[330063430,1718977867789,-500.0,0.00022191,4]
[330063431,1718977867798,-500.0,0.00022191,4]
[330063432,1718977867809,-508.48,0.00022191,4]
[330063433,1718977867819,-593.9,0.00022191,4]
[330063434,1718977867829,-688.83,0.00022191,4]
[330063435,1718977867839,-1542.47,0.00022191,4]
[330063436,1718977867849,-2121.75,0.00022191,4]
[330063437,1718977867858,-5000.0,0.00022191,4]
[330063438,1718977867868,-500.0,0.00022191,4]
[330063439,1718977867878,-500.0,0.00022191,4]
[330063440,1718977867887,-1284.6,0.00022191,4]
[330063441,1718977867897,-500.0,0.00022191,4]
[330063442,1718977867906,-770.01,0.00022191,4]
[330063443,1718977867915,-905.12,0.00022191,4]
[330063444,1718977867925,-500.0,0.00022191,4]
[330063445,1718977867934,-2433.21,0.00022191,4]
[330063446,1718977867943,-500.0,0.00022191,4]
[330063447,1718977867953,-500.0,0.00022191,4]
[330063448,1718977867962,-660.29,0.00022191,4]
[330063449,1718977867971,-712.37,0.00022191,7]
[330063450,1718977867980,-500.0,0.00022191,4]
[330063451,1718977867990,-500.0,0.00022191,4]
[330063452,1718977868002,-657.17,0.00022191,4]
[330063453,1718977868011,-500.0,0.00022191,4]
[330063454,1718977868021,-1351.96,0.00022191,4]
[330063455,1718977868030,-1630.34,0.00022191,4]
[330063456,1718977868040,-1898.28,0.00022191,4]
[330063457,1718977868050,-500.0,0.00022191,4]
[330063458,1718977868059,-1004.95,0.00022191,4]
[330063459,1718977868069,-3103.65,0.00022191,4]
[330063460,1718977868080,-500.0,0.00022191,4]
[330063461,1718977868090,-1010.3,0.00022191,4]
[330063462,1718977868099,-500.0,0.00022191,4]
[330063463,1718977868109,-500.0,0.00022191,4]
[330063464,1718977868118,-441.95708341,0.00022191,4]
[330063465,1718977868128,-500.0,0.00022191,4]
[330063466,1718977868137,-1000.36,0.00022191,4]
[330063467,1718977868147,-563.32,0.00022191,4]
[330063468,1718977868156,-500.0,0.00022191,4]
[330063469,1718977868166,-500.0,0.00022191,4]
[330063470,1718977868175,-717.12,0.00022191,4]
[330063471,1718977868185,-2056.05,0.00022191,4]
[330063472,1718977868194,-500.0,0.00022191,4]
[330063473,1718977868204,-500.0,0.00022191,4]
[330063474,1718977868214,-568.79,0.00022191,4]
[330063475,1718977868224,-500.0,0.00022191,4]
[330063476,1718977868233,-500.0,0.00022191,4]
[330063477,1718977868243,-1379.94,0.00022191,4]
[330063478,1718977868253,-500.0,0.00022191,4]
[330063479,1718977868262,-866.88,0.00022191,4]
[330063480,1718977868272,-2516.52,0.00022191,4]
[330063481,1718977868281,-500.0,0.00022191,4]
[330063482,1718977868291,-609.37,0.00022191,4]
[330063483,1718977868300,-558.47,0.00022191,4]
[330063484,1718977868310,-535.9,0.00022191,4]
[330063485,1718977868320,-500.0,0.00022191,4]
[330063486,1718977868329,-1207.7,0.00022191,4]
[330063487,1718977868339,-500.0,0.00022191,4]
[330063488,1718977868348,-510.41,0.00022191,4]
[330063489,1718977868358,-749.15,0.00022191,4]
[330063490,1718977868367,-960.29,0.00022191,4]
[330063491,1718977868377,-1219.71,0.00022191,4]
[330063492,1718977868386,-500.0,0.00022191,4]
[330063493,1718977868396,-604.51662929,0.00022191,4]
[330063494,1718977868406,-500.0,0.00022191,4]
[330063495,1718977868415,-1160.22,0.00022191,4]
[330063496,1718977868425,-856.19,0.00022191,4]
[330063497,1718977868434,-927.6,0.00022191,4]
[330063498,1718977868444,-986.55,0.00022191,4]
[330063499,1718977868453,-500.0,0.00022191,4]
[330063500,1718977868463,-717.42,0.00022191,4]
[330063501,1718977868472,-1021.07,0.00022191,4]
[330063502,1718977868484,-918.88,0.00022191,4]
[330063503,1718977868494,-648.74,0.00022191,4]
[330063504,1718977868503,-1542.67,0.00022191,4]
[330063505,1718977868512,-494.38929665,0.00022191,4]
[330063506,1718977868522,-500.0,0.00022191,4]
[330063507,1718977868531,-883.29,0.00022191,4]
[330063508,1718977868540,-500.0,0.00022191,4]
[330063509,1718977868548,-500.0,0.00022191,4]
[330063510,1718977868558,-700.37,0.00022191,4]
[330063511,1718977868567,-1278.83,0.00022191,4]
[330063512,1718977868576,-834.93,0.00022191,4]
[330063513,1718977868594,-500.0,0.00022191,4]
[330063514,1718977868604,-719.98,0.00022191,4]
[330063515,1718977868613,-2538.9,0.00022191,4]
[330063516,1718977868622,-706.21,0.00022191,4]
[330063517,1718977868635,-500.0,0.00022191,4]
[330063518,1718977868644,-1868.03,0.00022191,4]
[330063519,1718977868653,-670.85,0.00022191,4]
[330063520,1718977868663,-988.24,0.00022191,4]
[330063521,1718977868674,-500.0,0.00022191,4]
[330063522,1718977868683,-1975.26,0.00022191,4]
[330063523,1718977868692,-500.0,0.00022191,4]
[330063524,1718977868701,-500.0,0.00022191,4]
[330063525,1718977868710,-1915.97,0.00022191,4]
[330063526,1718977868719,-500.0,0.00022191,4]